Cogmind - Beta 14 @@@ ROGUE MODE // 2024.09.15 @ 17:48:12 Player: saltine Result: Destroyed by Striker with Compact Linear Accelerator Performance ------------- Evolutions (9) 4500 Regions Visited (28) 5600 Robots Destroyed (246) 1230 Value Destroyed (14526) 14526 Prototype IDs (59) 1180 Alien Tech Used (5) 1000 Bonus (8773) 8773 TOTAL SCORE: 36809 Bonus ------- High Alert Combat Kills 2698 Follower Combat Kills 1997 Entered Garrisons 200 Entered DSFs 500 Aligned with FarCom 300 Met Imprinter 300 Acquired ECA 300 Met Warlord at Base 500 MAIN.C Attacked Warlord 500 Met Warlord at Research 2000 Scanned by Researcher 500 Friendly Fire -1022 Cogmind --------- Core Integrity 0/1600 Matter 300/300 Energy 98/100 System Corruption 11% Temperature Cool (0) Movement Core (50) Location -1/Command Parts ------- > --- POWER (2) -------- (None) > --- PROPULSION (8) --- (None) > --- UTILITY (11) ----- Experimental Optical Array > --- WEAPON (4) ------- (None) > --- INVENTORY (5) ---- Light Quantum Reactor Light Quantum Reactor Core Cannon Peak State ------------ > --- POWER ------------ Vortex Chain Reactor > --- PROPULSION ------- Enhanced Armored Heavy Treads High-density Centrium Heavy Treads High-density Centrium Heavy Treads > --- UTILITY ---------- Advanced Heat Sink Advanced Cooling System Huge Storage Unit Experimental Optical Array Quantum Capacitor Centrium Light Armor Plating Thermal Barrier Experimental Force Field Advanced Hacking Suite Advanced Hacking Suite > --- WEAPON ----------- Core Stripper Sigix Broadsword > --- INVENTORY -------- Vortex Chain Reactor Heavy Siege Treads Biometal Heavy Treads Advanced Heavy Siege Treads Advanced Energy Well Long-range Terrain Scanner Advanced Transmission Jammer Layered Medium Armor Plating Centrium Heavy Armor Plating Graphene Brace Experimental EM Disruption Field Long-range Tractor Beam Chronowheel Subatomic Replicator Enhanced Nova Cannon Enhanced Nova Cannon Enhanced Nova Cannon Core Cannon Graviton Cannon [Rating: 233] Favorites ----------- Power Antimatter Reactor Engine Angular Momentum Engine Power Core Micro Nuclear Core Reactor Antimatter Reactor Propulsion Light Treads Treads Light Treads Leg Medium Armored Exoskeleton Wheel Wheel Flight Unit Impulse Thruster Array Utility High-capacity Storage Unit Device Improved Cooling System Storage High-capacity Storage Unit Processor Experimental Optical Array Hackware Advanced Hacking Suite Protection Improved Heavy Armor Plating Artifact Phase Armor Weapon Heavy Gauss Cannon Energy Gun Heavy Beamcaster Energy Cannon Cooled Particle Cannon Ballistic Gun Light Assault Rifle Ballistic Cannon Heavy Gauss Cannon Launcher Smartbomb Launcher Impact Weapon Core Stripper Slashing Weapon Sigix Broadsword Build | -11 -10 -10 -10 -9 -8 -8 -8 -7 -7 -7 -7 -6 -6 -6 -6 -5 -5 -4 -4 -4 -4 -3 -3 -2 -2 -2 -1 -1 ------- Run | Yrd Mat Min Exi Min Mat Gar Mat Fac Was Fac DSF Fac Low Low Zio Pro Fac Fac Upp Upp War Pro Res Res Qua Sec Acc Com Slots Evolved 18 | . . . . . 4 . . 2 . . . 2 . . . . 2 2 . . . . 2 2 . . 2 . Power 1 | . . . . . . . . . . . . 1 . . . . . . . . . . . . . . . . Propulsion 6 | . . . . . 1 . . 1 . . . . . . . . . 1 . . . . 1 . . . 2 . Utility 9 | . . . . . 2 . . 1 . . . 1 . . . . 2 1 . . . . 1 1 . . . . Weapon 2 | . . . . . 1 . . . . . . . . . . . . . . . . . . 1 . . . . Parts Attached 304 | 2 5 7 . . 11 20 6 15 14 . 3 3 2 2 5 5 5 18 11 24 9 10 7 75 29 13 . 3 Power 23 | . . 1 . . 1 2 . 1 1 . . . 1 . 1 . 1 . . 1 1 . . 9 2 1 . . Engine 3 | . . 1 . . . 1 . . . . . . 1 . . . . . . . . . . . . . . . Core 3 | . . . . . 1 1 . 1 . . . . . . . . . . . . . . . . . . . . Reactor 17 | . . . . . . . . . 1 . . . . . 1 . 1 . . 1 1 . . 9 2 1 . . Propulsion 63 | 2 . 2 . . 4 6 2 2 6 . 2 . 1 . . 1 . 2 1 3 4 1 1 13 4 4 . 2 Treads 57 | 2 . 1 . . 4 6 2 2 5 . 2 . 1 . . 1 . 2 1 3 4 1 1 9 4 4 . 2 Leg 1 | . . . . . . . . . 1 . . . . . . . . . . . . . . . . . . . Wheel 1 | . . 1 . . . . . . . . . . . . . . . . . . . . . . . . . . Hover . | . . . . . . . . . . . . . . . . . . . . . . . . . . . . . Flight 4 | . . . . . . . . . . . . . . . . . . . . . . . . 4 . . . . Utility 136 | . 3 1 . . 2 4 4 5 4 . 1 1 . 2 1 1 3 15 6 9 4 4 3 38 16 8 . 1 Device 80 | . . . . . 2 . 1 5 2 . 1 1 . 1 1 1 3 13 5 7 3 3 2 13 9 6 . 1 Storage 9 | . 3 . . . . . . . . . . . . . . . . 1 1 . . . . 2 2 . . . Processor 14 | . . 1 . . . . . . . . . . . . . . . . . . 1 . . 12 . . . . Hackware 6 | . . . . . . . . . . . . . . . . . . . . . . . 1 5 . . . . Protection 26 | . . . . . . 4 3 . 2 . . . . 1 . . . 1 . 2 . 1 . 6 4 2 . . Artifact 1 | . . . . . . . . . . . . . . . . . . . . . . . . . 1 . . . Weapon 82 | . 2 3 . . 4 8 . 7 3 . . 2 . . 3 3 1 1 4 11 . 5 3 15 7 . . . Energy Gun 1 | . . . . . . . . . 1 . . . . . . . . . . . . . . . . . . . Energy Cannon 31 | . 1 1 . . 1 1 . 3 . . . 1 . . 1 . . 1 2 3 . 3 1 9 3 . . . Ballistic Gun 10 | . 1 1 . . 2 5 . . . . . . . . . . . . . . . . . 1 . . . . Ballistic Cannon 24 | . . 1 . . . 2 . 2 2 . . 1 . . 1 2 1 . 1 5 . 2 1 2 1 . . . Launcher 13 | . . . . . 1 . . 2 . . . . . . 1 1 . . 1 3 . . 1 3 . . . . Special Weapon . | . . . . . . . . . . . . . . . . . . . . . . . . . . . . . Impact Weapon 2 | . . . . . . . . . . . . . . . . . . . . . . . . . 2 . . . Slashing Weapon 1 | . . . . . . . . . . . . . . . . . . . . . . . . . 1 . . . Piercing Weapon . | . . . . . . . . . . . . . . . . . . . . . . . . . . . . . Special Melee Weapon . | . . . . . . . . . . . . . . . . . . . . . . . . . . . . . Unidentified Prototypes 30 | . . . . . . . . 1 . . . 1 . . . . 2 . . . 4 . 1 7 11 2 . 1 Parts Lost 75 | . 1 3 . . 3 16 1 1 . . . . . . . . . . 1 5 8 . 8 11 5 7 2 3 Power 6 | . . . . . 1 3 . . . . . . . . . . . . . . . . . 1 . 1 . . Propulsion 27 | . . 2 . . 1 4 1 1 . . . . . . . . . . . 2 2 . 6 3 . 1 2 2 Utility 28 | . . . . . . 5 . . . . . . . . . . . . 1 2 4 . 2 6 3 4 . 1 Weapon 14 | . 1 1 . . 1 4 . . . . . . . . . . . . . 1 2 . . 1 2 1 . . Highest Loss Streak 14 | . 1 2 . . 2 14 1 1 . . . . . . . . . . 1 3 8 . 4 7 2 3 1 2 To Critical Strikes . | . . . . . . . . . . . . . . . . . . . . . . . . . . . . . Average Slot Usage (%) 79 | . 84 91 100 100 80 85 58 91 88 . 84 85 86 86 85 84 84 85 82 82 81 63 47 73 70 54 14 8 Engine 2 | . 14 14 14 14 8 1 . . . . . 5 6 6 4 . . . . . . . . . . . . . Reactor 5 | . . . . . . . . . 3 . 7 6 6 6 7 13 10 10 10 10 8 5 2 6 6 3 . . Treads 19 | . 28 16 14 14 20 26 26 29 27 . 23 20 20 20 20 20 17 18 20 20 21 26 18 11 12 12 10 2 Device 13 | . . . . . 2 8 2 14 12 . 7 13 13 13 13 20 25 26 20 25 25 21 15 8 13 16 . 1 Storage 6 | . 14 14 14 14 9 9 9 7 7 . 7 6 6 6 6 6 5 8 9 5 5 5 2 3 4 3 . . Processor 3 | . . 7 14 14 9 1 . . . . . . . . . . . . . . . . . 13 8 4 4 4 Hackware 1 | . . . . . . . . . . . . . . . . . . . . . . . . 11 8 2 . . Protection 6 | . . . . . . 10 11 7 9 . 15 13 13 12 12 6 5 5 5 5 4 5 2 6 3 4 . . Energy Cannon 5 | . 5 12 14 14 9 6 . 6 5 . . 5 6 6 5 6 5 7 9 9 9 . 1 2 5 2 . . Ballistic Gun 1 | . 19 4 . . 9 13 . . . . . . . . . . . . . . . . . . . . . . Ballistic Cannon 7 | . . 11 14 14 4 2 9 14 15 . 15 13 13 13 12 10 11 7 4 4 4 . . 3 1 3 . . Peak Build Rating 233 | 6 7 9 13 13 27 43 57 54 75 70 77 86 89 90 91 94 106 118 114 117 128 131 127 195 233 197 62 58 Average Rating 94 | 6 6 8 11 13 17 33 52 49 53 70 75 85 86 88 89 92 99 109 109 110 120 102 85 163 204 166 54 29 On Entrance 68 | 6 6 7 9 13 13 27 43 53 49 70 70 77 86 89 89 91 94 101 114 94 117 75 104 5 194 197 60 30 Naked Turns 62 | . . . . . . . . . . . . . . . . . . . . . . . 54 8 . . . . Heaviest Build 270 | 11 48 51 51 51 55 100 123 89 109 109 109 115 126 126 129 123 125 127 228 237 244 270 220 182 195 181 . 1 Greatest Support 260 | 40 40 40 10 10 60 60 60 80 110 110 126 126 128 128 128 128 127 154 154 154 154 140 168 220 260 260 3 3 Greatest Overweight (x) 5 | . 1 5 5 5 5 2 3 1 5 . . . . . 1 . . . 1 1 1 1 1 1 . 1 . . Average Overweight (x) . | . . 4 5 5 3 . 1 . 1 . . . . . . . . . . 1 1 1 . . . . . . Largest Inventory Capacity 30 | 8 20 20 20 20 20 20 20 20 20 20 20 20 20 20 20 20 20 20 30 30 30 30 30 20 25 25 5 5 Average Capacity 21 | 8 18 20 20 20 20 20 20 20 20 20 20 20 20 20 20 20 20 20 29 30 30 30 23 18 22 20 5 5 Most Carried 30 | 6 18 20 20 20 20 20 20 20 20 20 20 20 20 20 20 20 20 20 30 29 30 27 25 20 25 25 4 4 Average Carried 20 | 4 12 18 19 19 18 18 19 19 19 20 20 19 19 20 19 19 19 19 24 24 29 24 19 17 21 19 3 4 Final Capacity 30 | 8 20 20 20 20 20 20 20 20 20 20 20 20 20 20 20 20 20 20 30 30 30 30 5 20 25 5 5 5 Final Carried 30 | 4 18 20 20 20 20 19 20 20 20 20 20 20 20 20 20 20 20 20 30 26 28 26 5 20 25 2 4 4 Class Distribution -------------------- 28% | Tank 15% | Scavenger-Tank 15% | Mutant 14% | Hauler-Tank 5% | Hacker-Tank 5% | Hauler-Mutant 3% | Skirmisher 3% | Scavenger-Mutant Dominant Class ---------------- Mutant | -10/Materials Mutant | -10/Mines Mutant | -10/Exiles Mutant | -9/Mines Skirmisher | -8/Materials Scavenger-Tank | -8/Garrison Tank | -8/Materials Scavenger-Tank | -7/Factory Scavenger-Tank | -7/Waste Scavenger-Tank | -7/Factory Tank | -7/DSF Tank | -6/Factory Tank | -6/Lower Caves Tank | -6/Lower Caves Tank | -6/Zion Tank | -5/Proximity Caves Tank | -5/Factory Tank | -4/Factory Hauler-Tank | -4/Upper Caves Hauler-Tank | -4/Upper Caves Hauler-Tank | -4/Warlord Hauler-Mutant | -3/Proximity Caves Hauler-Mutant | -3/Research Hacker-Tank | -2/Research Scavenger-Mutant | -2/Quarantine Mutant | -2/Section 7 Mutant | -1/Access Mutant | -1/Command Resources | -11 -10 -10 -10 -9 -8 -8 -8 -7 -7 -7 -7 -6 -6 -6 -6 -5 -5 -4 -4 -4 -4 -3 -3 -2 -2 -2 -1 -1 ----------- Run | Yrd Mat Min Exi Min Mat Gar Mat Fac Was Fac DSF Fac Low Low Zio Pro Fac Fac Upp Upp War Pro Res Res Qua Sec Acc Com Matter Collected 6011 | 220 214 146 . . 210 385 63 379 264 . 68 120 298 82 60 130 188 525 256 502 87 178 105 907 458 112 54 . Remotely 1315 | . . . . . . . 20 187 . . . . . . . . . 506 85 300 . . . 217 . . . . Salvage Created 13015 | . 460 128 . . 806 612 225 472 282 . 126 . 45 49 . 222 508 595 333 729 . 432 963 1584 3196 1248 . . Parts 520 | . 34 9 . . 40 39 11 19 6 . 3 . 1 3 . 3 28 23 9 18 . 19 44 60 102 49 . . Haulers Intercepted 4 | . 1 . . . 1 . . . . . 1 . . . . . . . . . . . . 1 . . . . Recyclers Shooed 4 | . . . . 1 1 . . 1 . . . . . . . . . 1 . . . . . . . . . . Parts Field Recycled . | . . . . . . . . . . . . . . . . . . . . . . . . . . . . . Retrieved Matter . | . . . . . . . . . . . . . . . . . . . . . . . . . . . . . Parts Self-Destructed 84 | . . . . . . . . . . . . . 11 11 . 22 . . 8 14 . 18 . . . . . . Prevented 2 | . . . . . . . . . . . . . . . . . . . 1 . . 1 . . . . . . Kills | -11 -10 -10 -10 -9 -8 -8 -8 -7 -7 -7 -7 -6 -6 -6 -6 -5 -5 -4 -4 -4 -4 -3 -3 -2 -2 -2 -1 -1 ------- Run | Yrd Mat Min Exi Min Mat Gar Mat Fac Was Fac DSF Fac Low Low Zio Pro Fac Fac Upp Upp War Pro Res Res Qua Sec Acc Com Combat Hostiles Destroyed 227 | . 11 5 . . 18 19 6 14 . . 1 . 1 2 . 5 5 11 9 15 . 10 13 29 36 17 . . Melee 3 | . . . . . . . . . . . . . . . . . . . . . . . . . 3 . . . Guns 33 | . 10 3 . . 7 12 . . . . . . . . . . . . . . . . . 1 . . . . Cannons 135 | . 1 2 . . 8 7 6 10 . . 1 . 1 2 . . 5 10 4 7 . 10 8 19 23 11 . . AOE 33 | . . . . . 3 . . 4 . . . . . . . 5 . . 4 8 . . 1 8 . . . . Classes Destroyed 25 | . 4 1 . . 1 3 . 1 . . 1 . . 1 . 1 2 . . 1 . . 1 3 4 1 . . Worker 2 | . . 1 . . . . . 1 . . . . . . . . . . . . . . . . . . . . Builder 3 | . . . . . . . . . . . . . . . . . . . . . . . 3 . . . . . Hauler 4 | . 1 . . . 1 . . . . . 1 . . . . . . . . . . . . 1 . . . . Recycler 4 | . . . . . . . . 1 . . . . . . . . 1 1 . . . . 1 . . . . . Watcher 2 | . 1 . . . . . . . . . . . . . . . . . . . . . . . 1 . . . Swarmer 48 | . 3 3 . . 4 7 . 4 . . . . . . . . . . 4 1 . 7 . 11 . 4 . . Saboteur 1 | . . . . . . . . . . . . . . . . . . . . . . . . . 1 . . . Grunt 77 | . 8 2 . . 12 3 4 5 . . . . . . . 1 . . 4 10 . 2 5 1 13 7 . . Brawler 8 | . . . . . . . . . . . . . . . . 4 . . . . . 1 . 1 1 1 . . Duelist 4 | . . . . . . . . . . . 1 . . . . . . . . 1 . . . . 2 . . . Protector 1 | . . . . . . . . . . . . . . . . . . . . . . . . . . 1 . . Researcher 1 | . . . . . . . . . . . . . . . . . . . . . . . . . 1 . . . Sentry 25 | . . . . . 2 2 2 2 . . . . 1 1 . . 2 3 1 2 . . . 3 2 2 . . Demolisher 2 | . . . . . . . . . . . . . . . . . . . . . . . . 2 . . . . Specialist 2 | . . . . . . . . . . . . . . . . . . . . . . . . . 2 . . . Hunter 15 | . . . . . . 2 . 2 . . . . . . . . . 2 . . . . . 3 6 . . . Programmer 28 | . . . . . . 3 . 1 . . . . . . . . 2 6 . . . . 8 1 5 2 . . Q-Series 3 | . . . . . . . . . . . . . . . . . . . . . . . . . 3 . . . Behemoth 2 | . . . . . . 2 . . . . . . . . . . . . . . . . . . . . . . Striker 3 | . . . . . . . . . . . . . . . . . . . . . . . . 3 . . . . Executioner 4 | . . . . . . . . . . . . . . . . . . . . . . . . 4 . . . . Fortress 1 | . . . . . . . . . . . . . . . . . . . . . . . . . 1 . . . Master Thief 1 | . . . . . . . . . . . . . . 1 . . . . . . . . . . . . . . Surgeon 1 | . . . . . . . . . . . . . . . . . 1 . . . . . . . . . . . Wasp 1 | . . . . . . . . . 1 . . . . . . . . . . . . . . . . . . . Mutant 1 | . . . . . . . . . . . . . . . . . . . . 1 . . . . . . . . Infiltrator 2 | . . . . . . . . . . . . . . . . . 2 . . . . . . . . . . . Best Kill Streak 10 | . 6 3 . . 6 7 2 5 . . 2 . 1 1 . 5 3 3 4 9 . 4 7 10 7 9 . . Combat Bots Only 10 | . 4 3 . . 6 7 2 4 . . 1 . 1 1 . 5 3 2 4 9 . 4 5 10 5 9 . . Max Kills in Single Turn 3 | . 1 1 . . 3 2 1 2 1 . 1 . 1 1 . 2 1 1 3 3 . 1 3 2 1 1 . . Gunslinging . | . . . . . . . . . . . . . . . . . . . . . . . . . . . . . Exploded 3 | . . . . . 3 . . 2 . . . . . . . 2 . . 3 3 . . 1 2 . . . . Melee 1 | . . . . . . . . . . . . . . . . . . . . . . . . . 1 . . . Uniques/NPCs Destroyed . | . . . . . . . . . . . . . . . . . . . . . . . . . . . . . Combat | -11 -10 -10 -10 -9 -8 -8 -8 -7 -7 -7 -7 -6 -6 -6 -6 -5 -5 -4 -4 -4 -4 -3 -3 -2 -2 -2 -1 -1 -------- Run | Yrd Mat Min Exi Min Mat Gar Mat Fac Was Fac DSF Fac Low Low Zio Pro Fac Fac Upp Upp War Pro Res Res Qua Sec Acc Com Hostile Shots Fired 2557 | . 43 64 . . 71 195 10 151 . . 10 . 18 6 . 33 40 110 58 65 158 25 183 286 553 290 50 138 Missed 792 | . 8 17 . . 22 66 4 55 . . 2 . 5 3 . 5 17 28 13 13 58 9 71 112 104 106 23 51 Damage Taken 34675 | . 417 521 . 5 774 2831 105 1016 . . 225 78 233 34 . 477 388 1107 776 1169 2062 174 2054 5189 8201 3975 758 2106 Core 5183 | . 52 86 . 3 173 316 . 56 . . 19 . . . . 11 9 41 48 59 150 11 1139 518 389 473 267 1363 Absorbed by Shields 2916 | . . . . . . . . 280 . . . . . . . 175 140 405 106 167 396 185 543 . 519 . . . Reduced by Siege Mode 775 | . . . . . . . . . . . . . . . . 6 4 11 15 32 . . . . 650 57 . . Redirected to Core 140 | . . . . . . . . . . . . . . . . . . . . . . . . . 140 . . . Ignored by Resistances 2340 | . . . . . . . . . . . . . . . . . . . . . . . . . 1800 540 . . Regen/Repaired (Parts) 4676 | . . . . . 144 . 115 . 487 . 97 59 42 18 1042 . 24 224 . . 228 . . . 2196 . . . Core Remaining (%) 58 | 100 . . . 43 . . 11 . . . 89 . . . . 98 99 . . . . 73 12 . . 4 . . Volleys Fired 736 | . 32 23 . . 49 58 . 31 11 . 9 9 4 3 1 17 35 31 30 26 1 18 32 42 187 87 . . Largest 3 | . 2 2 . . 3 3 . 3 1 . 3 3 3 3 1 3 3 3 3 3 1 1 1 3 2 2 . . Hottest 280 | . 80 95 . . 115 132 . 166 60 . 199 148 148 208 30 148 148 196 196 196 90 105 105 280 190 190 . . Shots Fired 1299 | . 63 41 . . 143 150 14 80 11 . 17 11 13 9 1 23 64 92 59 49 1 23 40 109 201 85 . . Gun 274 | . 57 18 . . 88 84 . . . . 9 . . . . . . . . . . . . 18 . . . . Cannon 996 | . 6 23 . . 54 66 14 75 11 . 8 11 13 9 1 20 64 92 57 43 1 23 35 84 201 85 . . Launcher 29 | . . . . . 1 . . 5 . . . . . . . 3 . . 2 6 . . 5 7 . . . . Special . | . . . . . . . . . . . . . . . . . . . . . . . . . . . . . Kinetic 591 | . 56 31 . . 94 98 14 52 . . 8 2 8 6 . 6 29 39 15 11 . 5 8 78 30 1 . . Thermal 679 | . 7 10 . . 48 52 . 23 11 . 9 9 5 3 1 14 35 53 42 32 1 18 27 24 171 84 . . Explosive 17 | . . . . . 1 . . 5 . . . . . . . 3 . . 2 6 . . . . . . . . Electromagnetic 12 | . . . . . . . . . . . . . . . . . . . . . . . 5 7 . . . . Robot Hit Streak 19 | . 8 5 . . 13 17 6 9 18 . 4 6 5 3 . 8 9 14 10 10 . 4 14 11 19 11 . . Robot Miss Streak 6 | . 3 2 . . 6 5 2 4 1 . 1 2 2 2 . 2 2 3 3 1 . 6 2 2 4 3 . . Penetration Max 1 | . . . . . . . . . . . . . . . . . 1 1 . . . . . . . . . . Secondary Targets 2 | . 1 1 . . . . . . . . . . . . . . . . . . . . . . . . . . Max Gunslinging Chain 1 | . 1 1 . . . . . . . . . . . . . . . . . . . . . . . . . . Capacitor 269 | . . . . . . . . . . . . . . . . . . . . . . 18 21 . 154 76 . . Autonomous 104 | . . . . . . 3 14 . . . . . . . . . . . . . . 5 8 59 15 . . . Shots Hit Robots 845 | . 36 22 . . 93 97 10 47 10 . 12 3 9 4 . 15 35 60 33 29 . 11 29 75 155 60 . . Core Hits 428 | . 19 9 . 2 49 39 5 25 4 . 2 . 3 3 . 19 15 20 13 33 . 10 20 51 60 23 1 3 Critical Kills 18 | . . . . . . . . . . . . . . . . . . . 1 . . . 1 2 9 5 . . Critical Parts Destroyed . | . . . . . . . . . . . . . . . . . . . . . . . . . . . . . Critical Strikes 40 | . . . . . 1 . 2 2 . . 2 . . . . 1 2 3 1 1 . . 1 8 11 5 . . Burn 1 | . . . . . . . . . . . 1 . . . . . . . . . . . . . . . . . Meltdown 17 | . . . . . . . . . . . . . . . . . . . 1 . . . 1 1 9 5 . . Destroy 1 | . . . . . . . . . . . . . . . . . . . . . . . . 1 . . . . Blast 20 | . . . . . 1 . 2 2 . . 1 . . . . 1 2 3 . 1 . . . 6 1 . . . Sever 1 | . . . . . . . . . . . . . . . . . . . . . . . . . 1 . . . Melee Attacks 22 | . . . . . . . . . . . . . . . . . . . . . . . . . 22 . . . Kinetic 2 | . . . . . . . . . . . . . . . . . . . . . . . . . 2 . . . Impact . | . . . . . . . . . . . . . . . . . . . . . . . . . . . . . Slashing 20 | . . . . . . . . . . . . . . . . . . . . . . . . . 20 . . . Piercing . | . . . . . . . . . . . . . . . . . . . . . . . . . . . . . Sneak Attacks . | . . . . . . . . . . . . . . . . . . . . . . . . . . . . . Combat Hostiles . | . . . . . . . . . . . . . . . . . . . . . . . . . . . . . Follow-up Attacks . | . . . . . . . . . . . . . . . . . . . . . . . . . . . . . Damage Inflicted 36020 | . 504 347 . 11 1470 2001 783 1792 257 . 336 114 271 316 . 1435 1333 2046 1446 2245 12 610 2529 5715 7652 2694 68 33 Guns 2131 | . 443 90 . . 471 851 . . . . 162 . . . . . . . . . . . . 114 . . . . Cannons 27342 | . 36 247 . . 809 1150 783 1335 257 . 174 114 271 316 . 543 1308 2040 1003 831 . 610 1688 4476 6657 2694 . . Explosions 5299 | . . . . . 185 . . 428 . . . . . . . 892 . . 443 1410 . . 816 1125 . . . . Melee 966 | . . . . . . . . . . . . . . . . . . . . . . . . . 966 . . . Ramming 282 | . 25 10 . 11 5 . . 29 . . . . . . . . 25 6 . 4 12 . 25 . 29 . 68 33 Kinetic 14084 | . 443 215 . . 539 1365 783 960 . . 174 . 188 179 . 224 757 859 249 246 . 256 807 4114 1675 51 . . Thermal 15797 | . 36 122 . . 741 636 . 551 257 . 162 114 83 137 . 319 551 1181 754 585 . 354 881 677 5013 2643 . . Explosive 3353 | . . . . . 185 . . 252 . . . . . . . 892 . . 443 1410 . . . 171 . . . . Electromagnetic 1569 | . . . . . . . . . . . . . . . . . . . . . . . 816 753 . . . . Impact . | . . . . . . . . . . . . . . . . . . . . . . . . . . . . . Slashing 935 | . . . . . . . . . . . . . . . . . . . . . . . . . 935 . . . Piercing . | . . . . . . . . . . . . . . . . . . . . . . . . . . . . . Highest Corruption 26 | . . . . . . 1 1 . . . . 1 1 1 1 . . 6 6 6 6 7 14 2 18 26 3 11 Average Corruption 5 | . . . . . . 1 1 . . . . 1 1 1 1 . . 3 6 6 5 7 10 1 8 22 2 5 Corruption Purged . | . . . . . . . . . . . . . . . . . . . . . . . . . . . . . Corruption Blocked . | . . . . . . . . . . . . . . . . . . . . . . . . . . . . . Effects 279 | . . . . . . 6 5 . . . . 3 10 2 1 . . 11 29 46 2 37 12 17 51 44 1 2 Message Errors 62 | . . . . . . 2 1 . . . . . 1 1 . . . 2 8 8 1 10 3 5 12 8 . . Matter Fused 64 | . . . . . . . 1 . . . . 2 2 1 1 . . 2 6 16 . 10 2 4 9 8 . . Heat Flow Errors 27 | . . . . . . 1 . . . . . . 2 . . . . 1 4 6 . 3 . . 6 3 1 . Energy Discharges 35 | . . . . . . 2 2 . . . . . . . . . . 3 5 4 . 7 4 1 4 3 . . Parts Rejected 8 | . . . . . . . . . . . . 1 . . . . . . 1 1 . . . . . 4 . 1 Parts Fused 7 | . . . . . . . . . . . . . . . . . . 1 . 1 . . . . 3 2 . . Data Loss (minor) 39 | . . . . . . 1 1 . . . . . 3 . . . . 1 1 5 . 6 . 5 9 6 . 1 Data Loss (major) 9 | . . . . . . . . . . . . . 1 . . . . . . 2 1 1 . . 3 1 . . Misfires 5 | . . . . . . . . . . . . . 1 . . . . . . 1 . . . 2 1 . . . Alerts 4 | . . . . . . . . . . . . . . . . . . . 1 2 . . . . 1 . . . Misdirections 9 | . . . . . . . . . . . . . . . . . . . . . . . 3 . . 6 . . Weapon Failures 10 | . . . . . . . . . . . . . . . . . . 1 3 . . . . . 3 3 . . Overload Shots 5 | . . . . . . . . . . . . . . 2 . . . . . 2 1 . . . . . . . Overflow Damage 1415 | . . . . . 6 . 119 106 . . 23 . . 24 . . 20 53 72 27 . 4 258 273 387 43 . . Projectiles 1175 | . . . . . . . 119 37 . . 23 . . 24 . . 20 53 . . . 4 255 270 327 43 . . Explosions 180 | . . . . . 6 . . 69 . . . . . . . . . . 72 27 . . 3 3 . . . . Melee 60 | . . . . . . . . . . . . . . . . . . . . . . . . . 60 . . . Knockbacks 60 | . . 1 . . 1 . 2 7 . . 1 . . 3 . . 2 7 2 . . . 7 17 8 . 1 1 Impact 3 | . . . . . . . . . . . . . . . . . . . . . . . 1 . . . 1 1 Kinetic 54 | . . 1 . . 1 . 2 6 . . 1 . . 2 . . 2 7 2 . . . 5 17 8 . . . Secondary 3 | . . . . . . . . 1 . . . . . 1 . . . . . . . . 1 . . . . . Self-Inflicted Damage 321 | . . 5 . 5 2 . . . . . . . . . . . . . . 228 . . 4 30 . . 32 15 Shots 5 | . . . . . . . . . . . . . . . . . . . . 3 . . . 2 . . . . Rammed 38 | 1 3 1 . 3 2 . . 3 . . . . . . . . 2 1 . 1 1 . 2 . 2 . 8 8 Targets Rammed 39 | 1 4 1 . 3 2 . . 3 . . . . . . . . 2 1 . 1 1 . 2 . 2 . 8 8 Kicked . | . . . . . . . . . . . . . . . . . . . . . . . . . . . . . Crushed 1 | . 1 . . . . . . . . . . . . . . . . . . . . . . . . . . . Highest Temperature 439 | . 117 439 . . 252 339 . 374 . . 60 24 213 96 . 57 48 35 210 201 . 200 200 372 301 214 88 . Average Temperature 84 | . 58 233 . . 84 46 . 83 . . 27 16 75 45 . 31 21 35 70 44 . 124 112 116 55 100 52 . Received Heat Transfer 4299 | . 183 192 . . 477 676 27 150 . . 54 . 30 9 . 48 54 54 199 225 107 8 70 270 1007 351 36 72 Effects 11 | . . 2 . . 1 . . 1 . . . . . . . . . . . . . . 1 . 4 2 . . Shutdowns 1 | . . 1 . . . . . . . . . . . . . . . . . . . . . . . . . . Energy Bleed 3 | . . 1 . . . . . 1 . . . . . . . . . . . . . . . . 1 . . . Interference 7 | . . . . . 1 . . . . . . . . . . . . . . . . . 1 . 3 2 . . Siege Activations 28 | . . . . . . . . . . . 1 . . . . 2 1 5 3 4 . . . . 9 3 . . Total Turns 445 | . . . . . . . . . . . 8 . . . . 13 9 59 41 56 . . . . 184 75 . . Longest Duration 62 | . . . . . . . . . . . 8 . . . . 7 9 19 30 26 . . . . 62 62 . . Robots Corrupted 6 | . . . . . . . . . . . . . . . . . . . . . . . 5 1 . . . . Combat Hostiles 5 | . . . . . . . . . . . . . . . . . . . . . . . 4 1 . . . . Parts Fried 17 | . . . . . . . . . . . . . . . . . 1 . . . . . 12 4 . . . . Impact Corruptions 1 | . . . . . . . . . . . . . . . . . . . . . . . 1 . . . . . Robots Melted 19 | . . . . . . . . . . . . . . . . . . 1 1 . . . 1 1 9 6 . . Combat Hostiles 17 | . . . . . . . . . . . . . . . . . . 1 1 . . . . . 9 6 . . Parts Melted 37 | . . . . . 3 1 . . . . 1 . . . . 1 . 2 . . . . 4 2 11 12 . . Heat Transferred 16587 | . 74 259 . . 1332 999 . 692 407 . 333 148 111 137 . 425 740 1295 888 692 . 370 740 657 4142 2146 . . Parts Sabotaged 1 | . . . . . . . . . . . . . . . . . . . . . 1 . . . . . . . Parts Stolen . | . . . . . . . . . . . . . . . . . . . . . . . . . . . . . Parts Stripped 18 | . . . . . . . . . . . . . . . . . . . . . . . . . 18 . . . Power Chain Reactions 5 | . . . . . . . . . . . . . . . . . . . . . . . . 5 . . . . Alert | -11 -10 -10 -10 -9 -8 -8 -8 -7 -7 -7 -7 -6 -6 -6 -6 -5 -5 -4 -4 -4 -4 -3 -3 -2 -2 -2 -1 -1 ------- Run | Yrd Mat Min Exi Min Mat Gar Mat Fac Was Fac DSF Fac Low Low Zio Pro Fac Fac Upp Upp War Pro Res Res Qua Sec Acc Com Peak Influence 1224 | . 258 102 . . 354 709 393 506 147 5 574 695 . . . . 357 391 . . . . 594 1224 1004 928 760 498 Initial 627 | . . 7 . . . 230 299 31 137 . 3 301 . . . . 172 99 . . . . 150 300 627 414 556 423 Average 385 | . 75 49 . . 130 549 169 114 23 1 274 494 . . . . 207 166 . . . . 375 924 560 641 614 455 Maximum Alert Level 4 | . 1 . . . 1 3 1 2 . . 2 2 . . . . 1 1 . . . . 2 4 3 3 3 2 Low Security (%) 42 | 100 86 100 . 100 85 . 59 78 100 100 13 . . . . . 56 72 . . . . 25 . . . . . Level 1 15 | . 13 . . . 14 17 40 18 . . 52 48 . . . . 43 27 . . . . 22 4 20 . . . Level 2 22 | . . . . . . 74 . 3 . . 33 51 . . . . . . . . . . 52 20 57 48 80 100 Level 3 11 | . . . . . . 8 . . . . . . . . . . . . . . . . . 35 22 51 19 . Level 4 7 | . . . . . . . . . . . . . . . . . . . . . . . . 39 . . . . Level 5 . | . . . . . . . . . . . . . . . . . . . . . . . . . . . . . High Security . | . . . . . . . . . . . . . . . . . . . . . . . . . . . . . Max Security . | . . . . . . . . . . . . . . . . . . . . . . . . . . . . . Sterilizations 1 | . . . . . . . . . . . 1 . . . . . . . . . . . . . . . . . Squads Dispatched 63 | . 3 . . . 2 . 1 4 . . 2 6 . . . 1 4 3 . . . . 6 3 16 8 3 1 Investigation 10 | . 1 . . . 1 . . . . . . 2 . . . . 1 1 . . . . 1 1 . 1 . 1 Extermination 15 | . . . . . . . . 1 . . . 1 . . . . 2 2 . . . . 1 . 5 2 1 . Reinforcement 25 | . 2 . . . . . 1 2 . . 2 1 . . . . 1 . . . . . 3 2 6 3 2 . Assault 9 | . . . . . . . . 1 . . . 2 . . . 1 . . . . . . 1 . 2 2 . . Garrison 4 | . . . . . 1 . . . . . . . . . . . . . . . . . . . 3 . . . Intercept . | . . . . . . . . . . . . . . . . . . . . . . . . . . . . . Searches Triggered 1 | . . . . . . . . . . . . . . . . . . . . . . . . . . . 1 . Construction Impeded 2 | . . . . . . . . . . . . . . . . . 1 . . . . . . . 1 . . . Haulers Reinforced . | . . . . . . . . . . . . . . . . . . . . . . . . . . . . . Active Scanning Responses . | . . . . . . . . . . . . . . . . . . . . . . . . . . . . . Cargo Convoy Interrupts . | . . . . . . . . . . . . . . . . . . . . . . . . . . . . . Stealth | -11 -10 -10 -10 -9 -8 -8 -8 -7 -7 -7 -7 -6 -6 -6 -6 -5 -5 -4 -4 -4 -4 -3 -3 -2 -2 -2 -1 -1 --------- Run | Yrd Mat Min Exi Min Mat Gar Mat Fac Was Fac DSF Fac Low Low Zio Pro Fac Fac Upp Upp War Pro Res Res Qua Sec Acc Com Distress Signals 35 | . 1 . . . 3 . 1 . . . . . . . . . 3 2 . . . . 2 13 3 5 2 . Communications Jammed 43 | . . . . . . . . . . . . . . . . . . . . . 41 . 2 . . . . . Distress Signals 43 | . . . . . . . . . . . . . . . . . . . . . 41 . 2 . . . . . Times Spotted 515 | . 19 5 . . 23 22 10 19 1 . 11 11 7 4 . 18 16 18 7 13 22 19 46 67 52 56 27 22 Peak Tracking Total 22 | . 5 3 . . 6 6 3 5 1 . 5 4 3 2 . 8 3 5 4 7 20 3 17 12 7 22 14 20 Tactical Retreats 34 | . 1 . . . . . . 1 . . . . . . . 2 . 1 . . . . 6 12 . 7 4 . Traps | -11 -10 -10 -10 -9 -8 -8 -8 -7 -7 -7 -7 -6 -6 -6 -6 -5 -5 -4 -4 -4 -4 -3 -3 -2 -2 -2 -1 -1 ------- Run | Yrd Mat Min Exi Min Mat Gar Mat Fac Was Fac DSF Fac Low Low Zio Pro Fac Fac Upp Upp War Pro Res Res Qua Sec Acc Com Traps Triggered 17 | . 2 . . . 1 2 1 3 . . . 1 . . . . . 2 . . . . . . 2 2 . 1 Indirectly . | . . . . . . . . . . . . . . . . . . . . . . . . . . . . . Trap Hack Attempts . | . . . . . . . . . . . . . . . . . . . . . . . . . . . . . Triggered . | . . . . . . . . . . . . . . . . . . . . . . . . . . . . . Disarmed . | . . . . . . . . . . . . . . . . . . . . . . . . . . . . . Reprogrammed . | . . . . . . . . . . . . . . . . . . . . . . . . . . . . . Reused . | . . . . . . . . . . . . . . . . . . . . . . . . . . . . . Traps Extracted . | . . . . . . . . . . . . . . . . . . . . . . . . . . . . . Installed . | . . . . . . . . . . . . . . . . . . . . . . . . . . . . . Triggered 14 | . . . . . . . . . . . . . . . . . . . 1 . 10 1 . . 2 . . . Most Traps Carried 2 | . . . . . . . . . . . . . . . . . . . . . . 2 2 . . . . . Machines | -11 -10 -10 -10 -9 -8 -8 -8 -7 -7 -7 -7 -6 -6 -6 -6 -5 -5 -4 -4 -4 -4 -3 -3 -2 -2 -2 -1 -1 ---------- Run | Yrd Mat Min Exi Min Mat Gar Mat Fac Was Fac DSF Fac Low Low Zio Pro Fac Fac Upp Upp War Pro Res Res Qua Sec Acc Com Machines Disabled 27 | . 1 . . . . 1 . 5 . . 1 . . . . 1 . 2 . 2 1 . . 3 7 3 . . Max in Single Turn 2 | . 1 . . . . 1 . 2 . . . . . . . 1 . 1 . 1 1 . . 1 1 1 . . Garrison Access 6 | . . . . . . . . 1 . . . . . . . . 1 1 . . . . . 3 . . . . Garrison Relay 1 | . . . . . . 1 . . . . . . . . . . . . . . . . . . . . . . Machines Repaired . | . . . . . . . . . . . . . . . . . . . . . . . . . . . . . Machines Dismantled . | . . . . . . . . . . . . . . . . . . . . . . . . . . . . . Machines Sabotaged . | . . . . . . . . . . . . . . . . . . . . . . . . . . . . . Overloaded Fab Kills . | . . . . . . . . . . . . . . . . . . . . . . . . . . . . . Hacking | -11 -10 -10 -10 -9 -8 -8 -8 -7 -7 -7 -7 -6 -6 -6 -6 -5 -5 -4 -4 -4 -4 -3 -3 -2 -2 -2 -1 -1 --------- Run | Yrd Mat Min Exi Min Mat Gar Mat Fac Was Fac DSF Fac Low Low Zio Pro Fac Fac Upp Upp War Pro Res Res Qua Sec Acc Com Machines Accessed 63 | . 5 . 2 . 4 1 3 5 . 1 . 5 . . . . 2 2 . 1 2 1 5 2 7 7 5 3 Terminals 42 | . 4 . . . 2 1 2 2 . 1 . 5 . . . . . . . . . 1 4 . 6 7 4 3 Fabricators 3 | . . . . . . . . 2 . . . . . . . . . . . . . . . . . . 1 . Repair Stations 4 | . . . . . 1 . 1 . . . . . . . . . . 1 . . . . . . 1 . . . Recycling Units 4 | . 1 . . . . . . 1 . . . . . . . . 1 . . . . . 1 . . . . . Scanalyzers . | . . . . . . . . . . . . . . . . . . . . . . . . . . . . . Garrison Access 5 | . . . . . 1 . . . . . . . . . . . 1 1 . . . . . 2 . . . . Total Hacks 141 | . 15 . 2 . 17 2 8 12 . 1 . 8 . . . . 2 7 . 1 6 1 9 5 20 12 6 7 Successful 57 | . 3 . 2 . 10 1 5 4 . 1 . 1 . . . . 1 4 . 1 6 1 1 1 8 3 3 1 Failed 84 | . 12 . . . 7 1 3 8 . . . 7 . . . . 1 3 . . . . 8 4 12 9 3 6 Catastrophic 19 | . 1 . . . 2 . 2 1 . . . 3 . . . . . 2 . . . . 1 . 2 3 1 1 Database Lockouts . | . . . . . . . . . . . . . . . . . . . . . . . . . . . . . Manual 35 | . . . 1 . 4 . 2 7 . . . 2 . . . . . . . . . . 3 . 12 4 . . Terminals 96 | . 14 . . . 6 2 6 8 . 1 . 8 . . . . . . . . . 1 8 . 18 12 5 7 Fabricators 3 | . . . . . . . . 2 . . . . . . . . . . . . . . . . . . 1 . Repair Stations 18 | . . . . . 9 . 2 . . . . . . . . . . 5 . . . . . . 2 . . . Recycling Units 5 | . 1 . . . . . . 2 . . . . . . . . 1 . . . . . 1 . . . . . Scanalyzers . | . . . . . . . . . . . . . . . . . . . . . . . . . . . . . Garrison Access 10 | . . . . . 2 . . . . . . . . . . . 1 2 . . . . . 5 . . . . Terminal Hacks 35 | . 3 . 2 . 2 1 3 1 . 1 . 1 . . . . . . . 1 6 1 1 . 5 3 3 1 Record 4 | . . . 1 . . . . . . . . . . . . . . . . . . 1 . . . 1 . 1 Prototype ID Bank 5 | . . . . . . . . . . . . . . . . . . . . . 5 . . . . . . . Open Door 5 | . . . . . . . . . . . . . . . . . . . . 1 1 . . . . . 3 . Open DSF 2 | . . . . . . . . . . 1 . 1 . . . . . . . . . . . . . . . . Level Access Points 1 | . . . . . . . . . . . . . . . . . . . . . . . 1 . . . . . Emergency Access Points 3 | . . . . . . 1 . . . . . . . . . . . . . . . . . . 1 1 . . Terminal Index 1 | . . . . . . . 1 . . . . . . . . . . . . . . . . . . . . . Alert Level 1 | . . . . . . . . . . . . . . . . . . . . . . . . . . 1 . . Unreport Threat 6 | . . . . . . . 2 . . . . . . . . . . . . . . . . . 4 . . . Locate Traps 3 | . 2 . . . 1 . . . . . . . . . . . . . . . . . . . . . . . Registered Components 1 | . 1 . . . . . . . . . . . . . . . . . . . . . . . . . . . Zone Layout 2 | . . . . . 1 . . 1 . . . . . . . . . . . . . . . . . . . . Derelict Proto ID Bank 1 | . . . 1 . . . . . . . . . . . . . . . . . . . . . . . . . Fabricator Hacks 2 | . . . . . . . . 2 . . . . . . . . . . . . . . . . . . . . Network Status 2 | . . . . . . . . 2 . . . . . . . . . . . . . . . . . . . . Repair Station Hacks 14 | . . . . . 7 . 2 . . . . . . . . . . 3 . . . . . . 2 . . . Scan Component 8 | . . . . . 4 . 1 . . . . . . . . . . 2 . . . . . . 1 . . . Repair 6 | . . . . . 3 . 1 . . . . . . . . . . 1 . . . . . . 1 . . . Recycling Unit Hacks 1 | . . . . . . . . 1 . . . . . . . . . . . . . . . . . . . . Retrieve Components 1 | . . . . . . . . 1 . . . . . . . . . . . . . . . . . . . . Scanalyzer . | . . . . . . . . . . . . . . . . . . . . . . . . . . . . . Garrison Access Hacks 4 | . . . . . 1 . . . . . . . . . . . 1 1 . . . . . 1 . . . . Unlock Access 1 | . . . . . 1 . . . . . . . . . . . . . . . . . . . . . . . Seal Access 3 | . . . . . . . . . . . . . . . . . 1 1 . . . . . 1 . . . . Unauthorized Hacks 1 | . . . . . . . . . . . . . . . . . . . . . . . . . 1 . . . Terminals 1 | . . . . . . . . . . . . . . . . . . . . . . . . . 1 . . . Assimilate 1 | . . . . . . . . . . . . . . . . . . . . . . . . . 1 . . . Fabricators . | . . . . . . . . . . . . . . . . . . . . . . . . . . . . . Repair Stations . | . . . . . . . . . . . . . . . . . . . . . . . . . . . . . Recycling Units . | . . . . . . . . . . . . . . . . . . . . . . . . . . . . . Scanalyzers . | . . . . . . . . . . . . . . . . . . . . . . . . . . . . . Garrison Access . | . . . . . . . . . . . . . . . . . . . . . . . . . . . . . Data Cores Recovered . | . . . . . . . . . . . . . . . . . . . . . . . . . . . . . Used . | . . . . . . . . . . . . . . . . . . . . . . . . . . . . . Hacking Detections 49 | . 5 . . . 4 1 3 3 . . . 5 . . . . 1 1 . . . 1 5 1 7 7 2 3 Full Trace Events 4 | . . . . . . . . . . . . 1 . . . . . 1 . . . . 1 1 . . . . Feedback Events 1 | . . . . . . . . . . . . 1 . . . . . . . . . . . . . . . . Corruption 1 | . . . . . . . . . . . . 1 . . . . . . . . . . . . . . . . Feedback Blocked . | . . . . . . . . . . . . . . . . . . . . . . . . . . . . . Robot Schematics Acquired 6 | . . . . . . . . . . . . . . . 3 . . . . . . . . . 3 . . . Robots Built . | . . . . . . . . . . . . . . . . . . . . . . . . . . . . . Authchips . | . . . . . . . . . . . . . . . . . . . . . . . . . . . . . Time . | . . . . . . . . . . . . . . . . . . . . . . . . . . . . . Total Robot Build Rating . | . . . . . . . . . . . . . . . . . . . . . . . . . . . . . Part Schematics Acquired 17 | . . . . . . . . . . . . . . . 16 . . . . . . . . . 1 . . . Parts Built . | . . . . . . . . . . . . . . . . . . . . . . . . . . . . . Authchips . | . . . . . . . . . . . . . . . . . . . . . . . . . . . . . Time . | . . . . . . . . . . . . . . . . . . . . . . . . . . . . . Total Part Build Rating . | . . . . . . . . . . . . . . . . . . . . . . . . . . . . . Parts Repaired 6 | . . . . . 3 . 1 . . . . . . . . . . 1 . . . . . . 1 . . . Time 251 | . . . . . 78 . 26 . . . . . . . . . . 39 . . . . . . 108 . . . Parts Recycled . | . . . . . . . . . . . . . . . . . . . . . . . . . . . . . Recycled Matter . | . . . . . . . . . . . . . . . . . . . . . . . . . . . . . Retrieved Matter . | . . . . . . . . . . . . . . . . . . . . . . . . . . . . . Retrieved Components 2 | . . . . . . . . 2 . . . . . . . . . . . . . . . . . . . . Parts Scanalyzed . | . . . . . . . . . . . . . . . . . . . . . . . . . . . . . Part Schematics Acquired . | . . . . . . . . . . . . . . . . . . . . . . . . . . . . . Parts Damaged . | . . . . . . . . . . . . . . . . . . . . . . . . . . . . . Bothacking | -11 -10 -10 -10 -9 -8 -8 -8 -7 -7 -7 -7 -6 -6 -6 -6 -5 -5 -4 -4 -4 -4 -3 -3 -2 -2 -2 -1 -1 ------------ Run | Yrd Mat Min Exi Min Mat Gar Mat Fac Was Fac DSF Fac Low Low Zio Pro Fac Fac Upp Upp War Pro Res Res Qua Sec Acc Com Used RIF Installer . | . . . . . . . . . . . . . . . . . . . . . . . . . . . . . Robots Hacked . | . . . . . . . . . . . . . . . . . . . . . . . . . . . . . Non-combat . | . . . . . . . . . . . . . . . . . . . . . . . . . . . . . Combat . | . . . . . . . . . . . . . . . . . . . . . . . . . . . . . Robot Hacks Applied . | . . . . . . . . . . . . . . . . . . . . . . . . . . . . . Relay Couplers Released 11 | . . . . . . 8 . 2 . . . . . . . . . . . . . . . 1 . . . . Machine Destruction 7 | . . . . . . 4 . 2 . . . . . . . . . . . . . . . 1 . . . . Programmers 4 | . . . . . . 4 . . . . . . . . . . . . . . . . . . . . . . Fabnet Peak Effective % . | . . . . . . . . . . . . . . . . . . . . . . . . . . . . . Robots Rewired 5 | . . . . . . . . . . . . . . . . 2 . . . 3 . . . . . . . . Allies Hacked . | . . . . . . . . . . . . . . . . . . . . . . . . . . . . . Hacks Repelled . | . . . . . . . . . . . . . . . . . . . . . . . . . . . . . Allies | -11 -10 -10 -10 -9 -8 -8 -8 -7 -7 -7 -7 -6 -6 -6 -6 -5 -5 -4 -4 -4 -4 -3 -3 -2 -2 -2 -1 -1 -------- Run | Yrd Mat Min Exi Min Mat Gar Mat Fac Was Fac DSF Fac Low Low Zio Pro Fac Fac Upp Upp War Pro Res Res Qua Sec Acc Com Total Allies 25 | . . . . . . . . . 20 . . . . . . 2 . . . 3 . . . . . . . . Largest Group 20 | . . . . . . . . . 20 19 19 15 15 14 10 10 3 . . 3 . . . . . . . . Highest-Rated Group 460 | . . . . . . . . . 460 446 446 390 390 372 297 296 93 . . 114 . . . . . . . . Highest-Rated Ally 38 | . . . . . . . . . 35 35 35 35 35 35 35 35 31 . . 38 . . . . . . . . Warlord Squad Rendezvous 3 | . . . . . . . . . . . . . . . . . 2 1 . . . . . . . . . . Geek 1 | . . . . . . . . . . . . . . . . . 1 . . . . . . . . . . . Ghost 2 | . . . . . . . . . . . . . . . . . 1 1 . . . . . . . . . . Total Orders 4 | . . . . . . . . . . . . . . . . . 1 2 . . . 1 . . . . . . RETURN 4 | . . . . . . . . . . . . . . . . . 1 2 . . . 1 . . . . . . Ally Attacks 447 | . . . . . . . . . 4 . 63 62 43 56 . 165 50 . . 4 . . . . . . . . Total Damage 8650 | . . . . . . . . . 276 . 1558 1476 1146 853 . 2557 699 . . 85 . . . . . . . . Kills 64 | . . . . . . . . . 1 . 11 13 8 6 . 17 8 . . . . . . . . . . . Allies Corrupted 2 | . . . . . . . . . . . . . . . . 2 . . . . . . . . . . . . Allies Melted 3 | . . . . . . . . . . . . . . . . . . . . . . . . 3 . . . . Intel | -11 -10 -10 -10 -9 -8 -8 -8 -7 -7 -7 -7 -6 -6 -6 -6 -5 -5 -4 -4 -4 -4 -3 -3 -2 -2 -2 -1 -1 ------- Run | Yrd Mat Min Exi Min Mat Gar Mat Fac Was Fac DSF Fac Low Low Zio Pro Fac Fac Upp Upp War Pro Res Res Qua Sec Acc Com Robot Analysis Total . | . . . . . . . . . . . . . . . . . . . . . . . . . . . . . Derelict Logs Recovered 11 | . . 1 . 1 . . . . . . . . 2 . 1 2 . . 3 1 . . . . . . . . Drone Launches 5 | . . . . . . . . . . . . . . . . . 1 2 . . . 2 . . . . . . Drone Recoveries 4 | . . . . . . . . . . . . . . . . . 1 2 . . . 1 . . . . . . Exploration | -11 -10 -10 -10 -9 -8 -8 -8 -7 -7 -7 -7 -6 -6 -6 -6 -5 -5 -4 -4 -4 -4 -3 -3 -2 -2 -2 -1 -1 ------------- Run | Yrd Mat Min Exi Min Mat Gar Mat Fac Was Fac DSF Fac Low Low Zio Pro Fac Fac Upp Upp War Pro Res Res Qua Sec Acc Com Turns Passed 28984 | 107 986 594 601 251 779 1126 683 1249 2377 5 229 786 877 610 2414 1039 1155 802 1084 1487 1838 1149 462 3246 1866 711 299 172 Spaces Moved 15530 | 64 381 319 385 158 290 395 228 470 901 3 109 434 510 334 1298 571 631 366 401 537 736 446 332 2909 908 518 577 319 Core 1388 | . . . . . . . . . . . . . . . . . . . . . . . 221 15 . 256 577 319 Treads 11859 | 64 381 35 . . 111 395 228 470 901 3 109 434 510 334 1298 571 631 366 401 537 736 446 111 1617 908 262 . . Legs . | . . . . . . . . . . . . . . . . . . . . . . . . . . . . . Wheels 1006 | . . 284 385 158 179 . . . . . . . . . . . . . . . . . . . . . . . Hover . | . . . . . . . . . . . . . . . . . . . . . . . . . . . . . Flight 1277 | . . . . . . . . . . . . . . . . . . . . . . . . 1277 . . . . Fastest Speed 39 | 160 160 140 155 155 140 163 240 160 160 160 160 160 160 160 160 160 163 163 165 245 245 248 50 39 155 50 50 50 Average Speed 164 | 160 220 160 155 155 161 228 271 238 240 160 160 160 160 160 165 162 163 164 241 245 245 248 115 102 157 106 50 50 Slowest Speed 560 | 160 240 240 155 155 245 320 400 240 560 160 160 160 160 160 240 163 163 165 245 245 252 248 246 158 160 160 50 50 Overloaded Moves . | . . . . . . . . . . . . . . . . . . . . . . . . . . . . . Propulsion Burnouts . | . . . . . . . . . . . . . . . . . . . . . . . . . . . . . Robots Hopped 25 | . . . . . . . . . . . . . . . . . . . . . . . . 25 . . . . Cave-ins Triggered . | . . . . . . . . . . . . . . . . . . . . . . . . . . . . . Exploration Rate (%) 53 | 4 87 70 78 53 25 42 24 24 97 . 91 19 68 53 88 89 23 16 56 69 90 75 16 82 77 39 11 18 Regions Visited 28 Branch Regions 14 Pre-discovered Areas 7 | . . . 1 2 . . . . . . . . 2 . 1 . . . 1 . . . . . . . . . Known Exits Taken 7 | . . . . . 1 . . . . 1 . . . . . . . 1 . . . 1 1 1 . 1 . . Unknown Exits Taken 17 | 1 1 1 1 1 . . 1 . . . . 1 1 1 1 1 1 . 1 1 1 . . . 1 . 1 . Scrap Searched 17 | . . 1 . 1 . . . . . . . . 2 3 3 2 . . 4 . . 1 . . . . . . Spaces Dug 27 | . . . . . . . . . . . . 1 . . . 1 4 . 2 2 . . . 3 13 1 . . Terrain Destroyed 429 | . . . . . 10 . 3 50 . . 1 3 3 . . 37 13 27 65 97 . 10 4 49 44 13 . . Melee . | . . . . . . . . . . . . . . . . . . . . . . . . . . . . . Projectile 193 | . . . . . 2 . 3 9 . . 1 3 3 . . 2 13 27 26 14 . 10 4 19 44 13 . . AOE 236 | . . . . . 8 . . 41 . . . . . . . 35 . . 39 83 . . . 30 . . . . Terrain Rammed . | . . . . . . . . . . . . . . . . . . . . . . . . . . . . . Walls Destroyed . | . . . . . . . . . . . . . . . . . . . . . . . . . . . . . Machines Disabled . | . . . . . . . . . . . . . . . . . . . . . . . . . . . . . Actions | -11 -10 -10 -10 -9 -8 -8 -8 -7 -7 -7 -7 -6 -6 -6 -6 -5 -5 -4 -4 -4 -4 -3 -3 -2 -2 -2 -1 -1 --------- Run | Yrd Mat Min Exi Min Mat Gar Mat Fac Was Fac DSF Fac Low Low Zio Pro Fac Fac Upp Upp War Pro Res Res Qua Sec Acc Com Total 18227 | 68 460 359 392 164 507 512 293 534 1107 3 156 515 563 403 1558 665 706 493 473 667 772 493 403 3103 1275 667 586 330 Wait 1158 | . 21 4 . . 141 20 48 2 154 1 23 68 44 62 244 32 22 70 12 37 1 11 17 18 74 32 . . Move 15464 | 64 380 318 384 157 290 394 227 470 900 2 108 433 509 333 1297 570 630 365 400 536 735 445 331 2867 907 517 576 319 Hop 16 | . . . . . . . . . . . . . . . . . . . . . . . . 16 . . . . Pick Up 179 | . 15 5 3 2 9 14 8 6 8 . 5 1 1 . 4 3 5 4 8 3 11 3 2 34 20 3 2 . Fast Attach 131 | . 3 2 . . 5 2 1 5 10 . 2 2 2 2 2 1 1 2 3 3 7 . 1 51 12 9 . 3 Attach 114 | . 1 3 . . 5 12 4 6 2 . . 1 . . 1 3 3 4 7 15 2 10 6 13 12 4 . . Detach 43 | . . . . . . . 1 1 . . . . . . 1 . 1 1 10 8 . 6 4 3 7 . . . Swap 62 | 2 1 2 . . 1 6 1 4 2 . 1 . . . 2 1 1 12 1 6 . . . 12 5 2 . . Drop 195 | 2 3 1 5 2 5 6 3 6 20 . 8 1 3 2 6 4 6 3 2 . 14 . 8 47 25 13 . . Fire 736 | . 32 23 . . 49 58 . 31 11 . 9 9 4 3 1 17 35 31 30 26 1 18 32 42 187 87 . . Melee 22 | . . . . . . . . . . . . . . . . . . . . . . . . . 22 . . . Ram 23 | . . 1 . 3 2 . . . . . . . . . . . . . . . . . 1 . . . 8 8 Kick . | . . . . . . . . . . . . . . . . . . . . . . . . . . . . . Crush 15 | . 4 . . . . . . 3 . . . . . . . . 2 1 . 1 1 . 1 . 2 . . . Escape Stasis 2 | . . . . . . . . . . . . . . . . . . . . . . . . . 2 . . . Rewire 67 | . . . . . . . . . . . . . . 1 . 34 . . . 32 . . . . . . . . Trap . | . . . . . . . . . . . . . . . . . . . . . . . . . . . . . Miscellaneous . | . . . . . . . . . . . . . . . . . . . . . . . . . . . . . Route ------- -11/Scrapyard -10/Materials (discovered 3 exits: [*Mat x2] / [*Min]) -10/Mines (discovered 3 exits: [*Mat x2] / *Exi) -10/Exiles -9/Mines -8/Materials -8/Garrison -8/Materials -7/Factory -7/Waste -7/Factory -7/DSF -6/Factory (discovered 2 exits: *Fac / [*Low]) -6/Lower Caves -6/Lower Caves -6/Zion -5/Proximity Caves -5/Factory (discovered 3 exits: *Fac / *Upp x2) -4/Factory (discovered 9 exits: Res x4 / *Upp x2 / Ext x2 / Arm) -4/Upper Caves -4/Upper Caves -4/Warlord -3/Proximity Caves -3/Research (discovered 3 exits: *Res x3) -2/Research (discovered 4 exits: *Acc x3 / *Qua) -2/Quarantine (discovered 2 exits: *Acc / *Sec) -2/Section 7 -1/Access -1/Command History --------- Turn | Location | Event 6 | -11/Scrapyard | Discovered new exit (range 3) 108 | -11/Scrapyard | Entered Materials 318 | -10/Materials | Build established: Mutant 670 | -10/Materials | Discovered new exit (range 10) 935 | -10/Materials | Discovered new exit (range 5) 1041 | -10/Materials | Discovered new exit (range 8) 1094 | -10/Materials | Entered Mines 1186 | -10/Mines | Discovered new exit (range 9) 1241 | -10/Mines | Core integrity fell below 50% 1344 | -10/Mines | Found DCF Scrap (13 items) 1386 | -10/Mines | Learned Materials emergency access door positions 1505 | -10/Mines | Discovered new exit (range 16) 1595 | -10/Mines | Assembled infested the area 1680 | -10/Mines | Deemed a non-threat by the Exiles lab entrance 1682 | -10/Mines | Discovered new exit (range 5) 1688 | -10/Mines | Entered Exiles 1726 | -10/Exiles | Met 8R-AWN 1752 | -10/Exiles | Met EX-HEX 1803 | -10/Exiles | Met EX-BIN 1837 | -10/Exiles | Aligned with FarCom system 1839 | -10/Exiles | Given EX-Vault access code 1878 | -10/Exiles | Opened EX-Vault 1889 | -10/Exiles | Found AWS/Autocannon 1896 | -10/Exiles | Found Chronowheel 1899 | -10/Exiles | Found Latent Energy Streamer 1934 | -10/Exiles | Warned to stay clear of 0b10 Research branches 1978 | -10/Exiles | Met EX-DEC 1990 | -10/Exiles | Learned location of Zion (-6) 2075 | -10/Exiles | Visited The Gauntlet 2271 | -10/Exiles | Discovered new exit (range 10) 2289 | -10/Exiles | Stole three prototypes: Chronowheel, Latent Energy Streamer, AWS/Autocannon 2289 | -10/Exiles | Entered Mines 2340 | -9/Mines | Received a Rocket Launcher from a helpful Derelict 2524 | -9/Mines | Learned location of Storage (-8) 2530 | -9/Mines | Discovered new exit (range 8) 2540 | -9/Mines | Entered Materials 2540 | -8/Materials | Evolved 4 slots: Propulsion x1, Utility x2, Weapon x1 2581 | -8/Materials | Repaired Lgt. Treads 2608 | -8/Materials | Repaired Lgt. Treads 2636 | -8/Materials | Repaired Lgt. Treads 2978 | -8/Materials | Build established: Skirmisher 3252 | -8/Materials | Garrison activated, responded to threat 3319 | -8/Materials | Identified exit to Garrison 3319 | -8/Materials | Entered Garrison 3471 | -8/Garrison | Triggered checkpoint 3472 | -8/Garrison | Destroyed 7 combat bots 3594 | -8/Garrison | Garrison Relay disabled 3679 | -8/Garrison | Triggered checkpoint 3765 | -8/Garrison | Discovered new exit (range 15) 3800 | -8/Garrison | Build established: Scavenger-Tank 3823 | -8/Garrison | Triggered checkpoint 3917 | -8/Garrison | Triggered checkpoint 4093 | -8/Garrison | Spotted B-75 Beast 4093 | -8/Garrison | Spotted B-75 Beast 4119 | -8/Garrison | Core integrity fell below 50% 4151 | -8/Garrison | Destroyed B-75 Beast 4168 | -8/Garrison | Core integrity fell below 20% 4177 | -8/Garrison | Destroyed B-75 Beast 4201 | -8/Garrison | Lost 14 parts (1p4n5u4w) 4445 | -8/Garrison | Entered Materials 4471 | -8/Materials | Build established: Skirmisher 4869 | -8/Materials | Repaired Lgt. Treads 4928 | -8/Materials | Build established: Tank 5090 | -8/Materials | Discovered new exit (range 16) 5128 | -8/Materials | Entered Factory 5128 | -7/Factory | Evolved 2 slots: Propulsion x1, Utility x1 5130 | -7/Factory | FarCom data flow suspended 5428 | -7/Factory | Build established: Scavenger-Tank 6100 | -7/Factory | Found Powered Armor 6377 | -7/Factory | Sucked down chute 6377 | -7/Factory | Entered Waste 6378 | -7/Waste | Joined by Warlord forces that had cleared the area 6557 | -7/Waste | A Compactor rumbled back to life 6557 | -7/Waste | Spotted C-40 Crusher 6559 | -7/Waste | Allies destroyed C-40 Crusher 6788 | -7/Waste | Discovered new exit (range 15) 8754 | -7/Waste | Entered Factory 8754 | -7/Factory | Accompanied by 19 allies 8758 | -7/Factory | Identified exit to DSF 8759 | -7/Factory | Entered DSF 8759 | -7/DSF | Accompanied by 19 allies 8795 | -7/DSF | Additional patrols routed to DSF 8936 | -7/DSF | Discovered new exit (range 15) 8986 | -7/DSF | Sterilization system engaged 8988 | -7/DSF | Entered Factory 8988 | -6/Factory | Accompanied by 15 allies 8988 | -6/Factory | Evolved 2 slots: Power x1, Utility x1 9123 | -6/Factory | Build established: Tank 9547 | -6/Factory | Discovered new exit (range 8) 9674 | -6/Factory | Discovered new exit (range 10) 9688 | -6/Factory | First assault squad dispatched 9774 | -6/Factory | Entered Lower Caves 9774 | -6/Lower Caves | Accompanied by 15 allies 9850 | -6/Lower Caves | Met a Warlord Commander 9851 | -6/Lower Caves | Learned location of Warlord (-4) 9852 | -6/Lower Caves | Warlord Commander delivered Encrypted Comm Array 9856 | -6/Lower Caves | Found Encrypted Comm Array 9873 | -6/Lower Caves | Spotted B-75 Beast 9879 | -6/Lower Caves | Allies destroyed B-75 Beast 9948 | -6/Lower Caves | Learned location of Extension (-4) 10222 | -6/Lower Caves | Attracted the attention of an 0b10 checkpoint 10408 | -6/Lower Caves | Discovered new exit (range 11) 10425 | -6/Lower Caves | Found DCF Scrap (15 items) 10651 | -6/Lower Caves | Entered another Lower Caves area 10651 | -6/Lower Caves | Accompanied by 14 allies 10651 | -6/Lower Caves | Spotted 7D-GDE(f) 10652 | -6/Lower Caves | Allies destroyed 7D-GDE(f) 10657 | -6/Lower Caves | Spotted EP-P4B(f) 10676 | -6/Lower Caves | Encountered a Master Thief 10679 | -6/Lower Caves | Destroyed EP-P4B(f) 10952 | -6/Lower Caves | Lost 3 allies 11015 | -6/Lower Caves | Attracted the attention of an 0b10 checkpoint 11043 | -6/Lower Caves | Discovered new exit (range 19) 11261 | -6/Lower Caves | Entered Zion 11261 | -6/Zion | Accompanied by 10 allies 11309 | -6/Zion | System corruption cleaned by Quarantine Array 11508 | -6/Zion | Discovered new exit (range 16) 11730 | -6/Zion | Given A8's code to call for help 11983 | -6/Zion | Learned Factory trap positions 12001 | -6/Zion | Learned Factory emergency access door positions 12352 | -6/Zion | Found CR-A16's Pointy Stick 12457 | -6/Zion | Met Imprinter 12979 | -6/Zion | Given the Hacking Drone Bay 12979 | -6/Zion | Found Prototype Device 13109 | -6/Zion | Visited the Megawrench Repair Shop 13109 | -6/Zion | Megawrench repaired 11 parts 13675 | -6/Zion | Entered Proximity Caves 13675 | -5/Proximity Caves | Accompanied by 10 allies 13776 | -5/Proximity Caves | Attracted the attention of an 0b10 outpost 13983 | -5/Proximity Caves | Lost 4 allies 14212 | -5/Proximity Caves | Learned Factory emergency access door positions 14267 | -5/Proximity Caves | Spotted B-75 Beast 14277 | -5/Proximity Caves | Allies destroyed B-75 Beast 14465 | -5/Proximity Caves | Discovered new exit (range 15) 14714 | -5/Proximity Caves | Entered Factory 14714 | -5/Factory | Accompanied by 3 allies 14714 | -5/Factory | Evolved 2 slots: Utility x2 14715 | -5/Factory | Identified exit to Upper Caves 14716 | -5/Factory | Loaded intel: 93 trap records 14902 | -5/Factory | Identified Hacking Drone Bay 15030 | -5/Factory | Discovered new exit (range 16) 15199 | -5/Factory | Joined by Warlord Geek squad 15554 | -5/Factory | Joined by Warlord Ghost squad 15764 | -5/Factory | Lost 4 allies 15869 | -5/Factory | Entered another Factory area 15869 | -4/Factory | Evolved 2 slots: Propulsion x1, Utility x1 16126 | -4/Factory | Found Quantum Capacitor 16376 | -4/Factory | Identified exit to Research 16379 | -4/Factory | Identified exit to Upper Caves 16379 | -4/Factory | Identified exit to Extension 16379 | -4/Factory | Identified exit to Armory 16466 | -4/Factory | Repaired Broken Hvy. Treads 16632 | -4/Factory | Joined by Warlord Ghost squad 16671 | -4/Factory | Entered Upper Caves 16688 | -4/Upper Caves | Learned Research emergency access door positions 16799 | -4/Upper Caves | Attracted the attention of an 0b10 checkpoint 17006 | -4/Upper Caves | Build established: Hauler-Tank 17084 | -4/Upper Caves | Learned 4 Research zone layouts 17143 | -4/Upper Caves | Learned location of Testing (-3) 17634 | -4/Upper Caves | Discovered new exit (range 15) 17755 | -4/Upper Caves | Entered another Upper Caves area 17792 | -4/Upper Caves | Learned location of 1 exit from Proximity Caves 17846 | -4/Upper Caves | Attracted the attention of an 0b10 checkpoint 17981 | -4/Upper Caves | Encountered a Warlord checkpoint 18802 | -4/Upper Caves | Attacked by a delusional Derelict stockpiling Unaware 18928 | -4/Upper Caves | Attracted the attention of an 0b10 outpost 18958 | -4/Upper Caves | Discovered new exit (range 17) 18973 | -4/Upper Caves | Lost 3 allies 18977 | -4/Upper Caves | Destroyed 9 combat bots 18987 | -4/Upper Caves | Lost 3 parts (2n1w) 19242 | -4/Upper Caves | Entered Warlord 19326 | -4/Warlord | System corruption cleaned by Quarantine Array 19737 | -4/Warlord | Found Prototype Special Weapon 19741 | -4/Warlord | Found Prototype Special Weapon 20435 | -4/Warlord | Warlord's base attacked by MAIN.C 20532 | -4/Warlord | Met Warlord 20562 | -4/Warlord | Found Prototype Reactor 20562 | -4/Warlord | Identified Vortex Chain Reactor 20578 | -4/Warlord | Found Prototype Device 20578 | -4/Warlord | Identified Exp. Phase Shifter 20590 | -4/Warlord | Found Prototype Processor 20590 | -4/Warlord | Identified Exp. Armor Integrity Analyzer 20597 | -4/Warlord | Found Prototype Hackware 20785 | -4/Warlord | Warlord forces counterattacked 21035 | -4/Warlord | Spotted Striker 21035 | -4/Warlord | Spotted Striker 21035 | -4/Warlord | Spotted Executioner 21036 | -4/Warlord | P-70 Sage assimilated allied WO-4Q0(g) 21045 | -4/Warlord | P-70 Sage assimilated allied OA-FKI(l) 21060 | -4/Warlord | Discovered new exit (range 9) 21080 | -4/Warlord | Entered Proximity Caves 21108 | -3/Proximity Caves | Lost 8 parts (2n4u2w) 21332 | -3/Proximity Caves | Build established: Hauler-Mutant 21470 | -3/Proximity Caves | Spotter reported a threat 22229 | -3/Proximity Caves | Entered Research 22229 | -3/Research | Evolved 2 slots: Propulsion x1, Utility x1 22498 | -3/Research | System corruption reached 10% 22528 | -3/Research | First assault squad dispatched 22568 | -3/Research | Identified System Mapper 22590 | -3/Research | Spotted B-86 Titan 22624 | -3/Research | Identified exit to Research 22657 | -3/Research | Core integrity fell below 50% 22668 | -3/Research | Lost 4 parts (2n2u) 22680 | -3/Research | Core integrity fell below 20% 22691 | -3/Research | Entered another Research area 22691 | -2/Research | Warlord forces began assault on 0b10 22691 | -2/Research | Evolved 2 slots: Utility x1, Weapon x1 22716 | -2/Research | Distinguished unit "Offensive Angels" dispatched to help 22773 | -2/Research | Lost 3 allies 22801 | -2/Research | Research machine network offline 22851 | -2/Research | Spotted B-90 Cyclops 22925 | -2/Research | Met up with Warlord 22927 | -2/Research | Build established: Mutant 22952 | -2/Research | Lost 3 allies 23125 | -2/Research | Discovered new exit (range 15) 23125 | -2/Research | Discovered new exit (range 5) 23127 | -2/Research | Identified exit to Access 23136 | -2/Research | Spotted Executioner 23191 | -2/Research | Lost 3 allies 23236 | -2/Research | Borebot progress halted 23273 | -2/Research | Build established: Hacker-Scout 23276 | -2/Research | Lost 3 allies 23296 | -2/Research | Borebot progress halted 23364 | -2/Research | Lost 7 parts (3n3u1w) 23523 | -2/Research | Found Adv. Powered Armor 23526 | -2/Research | Found Adv. Powered Armor 23529 | -2/Research | Found Adv. Powered Armor 23533 | -2/Research | Found Adv. Powered Armor 23585 | -2/Research | Build established: Hacker-Gunner 23766 | -2/Research | Spotted Striker 23811 | -2/Research | Spotted Striker 23814 | -2/Research | Destroyed Striker 23823 | -2/Research | Spotted Striker 23832 | -2/Research | Destroyed Striker 23858 | -2/Research | Lost 5 allies 23860 | -2/Research | Spotted B-90 Cyclops 23865 | -2/Research | Destroyed 10 combat bots 24317 | -2/Research | Found Quantum Capacitor 24365 | -2/Research | Discovered exit to Access (range 3) 24394 | -2/Research | Build established: Hacker-Tank 24485 | -2/Research | Spotted Executioner 24491 | -2/Research | Spotted Executioner 24733 | -2/Research | Spotted Executioner 24734 | -2/Research | Spotted Striker 24743 | -2/Research | Destroyed Striker 24749 | -2/Research | Destroyed Executioner 24801 | -2/Research | Spotted Executioner 24803 | -2/Research | Spotted Striker 24805 | -2/Research | Destroyed Executioner 24917 | -2/Research | Spotted Executioner 24920 | -2/Research | Spotted Executioner 24935 | -2/Research | Destroyed Executioner 24963 | -2/Research | Destroyed Executioner 25076 | -2/Research | Spotted Executioner 25156 | -2/Research | Lost 3 allies 25434 | -2/Research | Lost 10 allies 25477 | -2/Research | Found Prototype Processor 25477 | -2/Research | Identified Exp. Core Analyzer 25902 | -2/Research | Discovered new exit (range 23) 25936 | -2/Research | Identified exit to Quarantine 25937 | -2/Research | Entered Quarantine 25961 | -2/Quarantine | Found Alien Impact Weapon 26007 | -2/Quarantine | Garrison activated, responded to threat 26042 | -2/Quarantine | Found Alien Artifact 26044 | -2/Quarantine | Identified Phase Armor 26161 | -2/Quarantine | Scanned by Researcher 26187 | -2/Quarantine | First assault squad dispatched 26209 | -2/Quarantine | Found Alien Artifact 26506 | -2/Quarantine | Found Alien Slashing Weapon 26506 | -2/Quarantine | Identified Sigix Broadsword 26576 | -2/Quarantine | Build established: Scavenger-Mutant 26779 | -2/Quarantine | Found Alien Energy Cannon 26800 | -2/Quarantine | Discovered exit to Access (range 8) 26958 | -2/Quarantine | Core integrity fell below 50% 26979 | -2/Quarantine | System corruption reached 10% 27094 | -2/Quarantine | Identified Core Stripper 27108 | -2/Quarantine | Spotted Fortress 27118 | -2/Quarantine | Destroyed Fortress 27127 | -2/Quarantine | Found Vortex Chain Reactor 27141 | -2/Quarantine | Found Prototype Device 27142 | -2/Quarantine | Identified Exp. EM Disruption Field 27146 | -2/Quarantine | Found Prototype Device 27146 | -2/Quarantine | Identified Thermal Barrier 27153 | -2/Quarantine | Found Vortex Chain Reactor 27158 | -2/Quarantine | Found Prototype Device 27158 | -2/Quarantine | Identified Exp. Force Field 27179 | -2/Quarantine | Found Prototype Protection 27379 | -2/Quarantine | Identified Centrium Heavy Armor Plating 27420 | -2/Quarantine | Build established: Hacker-Mutant 27490 | -2/Quarantine | Repaired Centrium Heavy Armor Plating 27795 | -2/Quarantine | Discovered new exit (range 6) 27803 | -2/Quarantine | Entered Section 7 27809 | -2/Section 7 | Build established: Mutant 27883 | -2/Section 7 | Found Alien Artifact 27883 | -2/Section 7 | Identified Integrated Dissipator 27883 | -2/Section 7 | Installed Integrated Dissipator, increased core heat dissipation (+20) 28099 | -2/Section 7 | First assault squad dispatched 28107 | -2/Section 7 | Found Alien Artifact 28107 | -2/Section 7 | Identified Integrated Reactor 28107 | -2/Section 7 | Installed Integrated Reactor, increased core energy generation (+10) 28253 | -2/Section 7 | Destroyed 9 combat bots 28389 | -2/Section 7 | Lost 3 parts (2u1w) 28414 | -2/Section 7 | Spotted B-90 Cyclops 28417 | -2/Section 7 | Spotted Alpha 7 28433 | -2/Section 7 | Spotted S7 Guard 28441 | -2/Section 7 | Activated Chronowheel 28458 | -2/Section 7 | Spotted S7 Guard 28462 | -2/Section 7 | Core integrity fell below 20% 28504 | -2/Section 7 | Discovered exit to Access (range 19) 28513 | -2/Section 7 | Spotted S7 Guard 28514 | -2/Section 7 | Entered Access 28514 | -1/Access | Evolved 2 slots: Propulsion x2 28808 | -1/Access | Search patrols dispatched 28810 | -1/Access | Discovered new exit (range 7) 28813 | -1/Access | Entered Command 28840 | -1/Command | Found Prototype Device 28840 | -1/Command | Identified Exp. Weapon Cycler 28950 | -1/Command | Core integrity fell below 50% 28968 | -1/Command | System corruption reached 10% 28974 | -1/Command | Spotted Alpha 7 28974 | -1/Command | Spotted Striker 28974 | -1/Command | Spotted Executioner 28974 | -1/Command | Spotted Executioner 28974 | -1/Command | Spotted Alpha 7 28974 | -1/Command | Spotted Striker 28974 | -1/Command | Spotted Executioner 28974 | -1/Command | Spotted Executioner 28980 | -1/Command | Core integrity fell below 20% 28985 | -1/Command | Destroyed by Striker with Compact Linear Accelerator Last Messages --------------- 28946_ Slug penetrates Wall. 28949_ Slammed into Y-72 Warden. 28949_ Destabilizing: Core damaged (-16). 28966_ System corrupted: Component data lost. 28967_ Slammed into P-80 Master. 28974_ Slug penetrates Wall. 28974_ Penetrated by Slug. 28975_ Knocked back. 28975_ Slug penetrates Wall. 28978_ Penetrated by Slug. 28979_ Knocked back. 28979_ Penetrated by Slug. 28979_ Slug penetrates R-10 Processor. 28979_ R-10 Processor destroyed. 28979_ Penetrated by Slug. 28979_ Slug penetrates K-01 Serf. 28980_ K-01 Serf collects debris. 28980_ K-01 Serf destroyed. 28983_ K-01 Serf collects debris. 28984_ O-32 Director: "IFF HANDSHAKE FAILED. SECURING TERMINAL." Map ----- +----------------------------------------------------+ | ?????????????????????????????????????????????????? | | ?????????????????????????????????????????????????? | | ?????????????????????????????????????????????????? | | ?????????????????????????????????????????????????? | | ?????????????????????????????????????????????????? | | ?????????????????????????????????????????????????? | | ?????????????????????????????????????????????????? | | ?????????????????????????????????????????????????? | | ?????????????????????????????????????????????????? | | ?????????????????????????????????????????????????? | | ???????????????????????###???????????????????????? | | ?????????????????????==! ???????????????????????? | | ???????????????????# =!! ???????????????????????? | | ???????????????????? =!! ??????????? ????????? | | ???????????????????? ?????????? #???????? | | ???????????????????? ??????????# #???????? | | ???????????????????? ! ??????????# #???????? | | ????????????????????"" #?????????# =* #???????? | | ????????????????????"" #?????????# =%=#???????? | | ????????????????????"T #?????????# = #???????? | | ????????????????????"" #??????? # #???????? | | ?????????????????????" #???????? # #???????? | | ????????????????????? #???????? / #???????? | | ??????????????????????? %#?????????# #???????? | | ????????????? ##########/########### #######+# | | ???????????? + k@ R =%* %[ | | ???????????? + o ! [[ | | ???????????? + [ | | ???????????? + % % | | ???????????? + k K | | ????????????? ####### ########;#### | | ?????????????????????# ?????????#?#" | | ?????????????????????# ???????????## #### | | ?????????????????????# ????????????# #??# | | ?????????????????????# ?????????????# %######??# | | ?????????????????????# ?????????????# #???????# | | ?????????????????????#k?????????????#////#???????# | | ?????????????????????#?????????????# %#??????# | | ??????????????????????????????????#" #??????# | | ??????????????????????????????????# #?????# | | ??????????????????????????????????## ^##?????# | | ??????????????????????????????????# ??????# | | ??????????????????????????????????## ##???### | | ??????????????????????????????????? ^ ????# | | ??????????????????????????????????## #????# | | ??????????????????????????????????? ????# " | | ???????????????????????????????????# ^#????# " | | ??????????????????????????????????? ????# " | | ??????????????????????????????????? ????# | | ?????????????????????????????????? ^ ????### | +----------------------------------------------------+ Best States ------------- Heat Dissipation 119 Coolant Potential 100 Energy Generation 65 Energy Capacity 700 Matter Stores 550 Matter Capacity 550 Sight Range 23 Robot Scan Range 16 Terrain Scan Range 24 Terrain Scan Density 10 Jamming Range 16 Armor Coverage 2000 Resistance: KI 20 Resistance: TH 50 Resistance: EM 75 Weapon Cycling 30 Phase Shifting 20 Evasion (%) 72 Targeting Accuracy 48 Core Analysis 8 Recoil Reduction 6 Offensive Hacking 40 Defensive Hacking 12 Authchip Count 1 Item Schematics ----------------- Fusion Compressor | -6/Zion | Archive Recoil Nullifier | -6/Zion | Archive Enh. Optical Array | -6/Zion | Archive Antigrav System | -6/Zion | Archive Hvy. Machine Gun | -6/Zion | Archive Hvy. Phase Cannon | -6/Zion | Archive Imp. Medium Treads | -6/Zion | Archive Point Defense Array | -6/Zion | Archive Imp. System Guard | -6/Zion | Archive Imp. Core Shielding | -6/Zion | Archive KE Penetrator | -6/Zion | Archive Adv. Field Recycling Unit | -6/Zion | Archive System Guard | -6/Zion | Archive Hvy. Shock Bomb Launcher | -6/Zion | Archive Hvy. Plasma Cannon | -6/Zion | Archive HERF Cannon | -6/Zion | Archive Hvy. Tesla Rifle | -2/Quarantine | Archive Robot Schematics ------------------ M-22 Extractor | -6/Zion | Archive K-01 Serf | -6/Zion | Archive R-10 Processor | -6/Zion | Archive G-73 Enforcer | -2/Quarantine | Archive B-74 Champion | -2/Quarantine | Archive A-27 Freighter | -2/Quarantine | Archive Fabricated ------------ Nothing Alien Tech Used ----------------- Phase Armor Sigix Broadsword Core Stripper Integrated Dissipator Integrated Reactor Achievements -------------- Perfect Aim Challenges ------------ None Game ------ Seed GravityUtilityDoomcannon Manual? 0 Play Time 04:35:27 Cumulative 206.6 hours Start 2024.09.14 @ 13:11:00 End 2024.09.15 @ 17:48:12 Sessions 11 Manual Loads 0 Difficulty Rogue Special Mode None Game No. 138 Rogue 138 Adventurer 0 Explorer 0 Win Type - Total 9 Types 3/0/4/1/0/0/1/0/0 Lore% 73 Gallery% 72 Achievement% 64 Wizard Run 0 Options --------- Layout 0 ASCII 0 Keyboard 0 Movement Arrows Keybinds 0 Fullscreen 2 Font 18/SmallcapsGlow Map View 76x50 Zoom Use 0% Tactical HUD 1 Map Filters NONE Filters NONE Steam 1 RUN: 86e7c0dc-91e4-4ad8-a089-6c32f71ea476